bitfinex-derivatives/quotes_BTCF0:USTF0_20250919
["timestamp","ask_amount","ask_price","bid_price","bid_amount"]
[1758292758735,0.9129709,116270.0,116260.0,1.13236022]
[1758292758940,1.24855673,116270.0,116260.0,1.13236022]
[1758292759532,1.24855673,116270.0,116260.0,0.79677439]
[1758292759732,1.24855673,116270.0,116260.0,1.13236022]
[1758292762639,1.24855673,116270.0,116260.0,1.46794605]
[1758292762845,1.24855673,116270.0,116260.0,1.13236022]
[1758292763842,0.9129709,116270.0,116260.0,1.13236022]
[1758292764043,1.24855673,116270.0,116260.0,1.13236022]
[1758292765242,1.24855673,116270.0,116260.0,0.79677439]
[1758292765444,1.24855673,116270.0,116260.0,1.04639172]
[1758292768046,1.24855673,116270.0,116260.0,0.71080589]
[1758292768247,1.24855673,116270.0,116260.0,1.04639172]
[1758292770848,1.24855673,116270.0,116260.0,0.71080589]
[1758292771248,1.24855673,116270.0,116260.0,1.04639172]
[1758292772649,0.46231673,116270.0,116260.0,1.04639172]
[1758292772849,1.24811673,116270.0,116260.0,1.13236022]
[1758292773049,1.24811673,116270.0,116260.0,1.04639172]
[1758292774151,1.24811673,116270.0,116260.0,1.13236022]
[1758292774542,1.24811673,116270.0,116260.0,1.04639172]
[1758292779353,1.24811673,116270.0,116260.0,0.79639172]
[1758292779555,1.24811673,116270.0,116260.0,0.46080589]
[1758292779750,1.24811673,116270.0,116260.0,0.79639172]
[1758292781357,0.46231673,116270.0,116260.0,0.79639172]
[1758292781655,1.24791673,116270.0,116260.0,1.21794605]
[1758292781856,0.9123309,116270.0,116260.0,0.8823205]
[1758292782456,0.1138309,116270.0,116260.0,0.8823205]
[1758292782647,0.8994309,116270.0,116260.0,0.8823205]
[1758292784354,1.24865701,116270.0,116260.0,0.46080589]
[1758292792961,0.9131109,116270.0,116260.0,0.46080589]
[1758292793261,1.24865701,116270.0,116260.0,0.46080589]
[1758292797856,1.60945701,116270.0,116260.0,0.00075463]
[1758292798062,0.121196,116250.0,116240.0,0.00014]
[1758292798255,1.93836822,116250.0,116240.0,4e-05]
[1758292798454,1.93836822,116250.0,116240.0,0.07030766]
[1758292798655,1.93836822,116250.0,116240.0,4e-05]
[1758292799348,1.93936822,116250.0,116240.0,4e-05]
[1758292799753,1.94236822,116250.0,116240.0,0.00204]
[1758292802662,1.94236822,116250.0,116240.0,0.07075992]
[1758292802862,1.94236822,116250.0,116240.0,0.04105602]
[1758292803069,0.0992808,116230.0,116220.0,1.86955909]
[1758292803263,1.22010691,116230.0,116220.0,1.86945909]
[1758292804764,1.22014691,116230.0,116220.0,1.86945909]
[1758292805061,0.003,116230.0,116220.0,3.68176951]
[1758292805263,0.0859825,116250.0,116240.0,0.1190408]
[1758292805459,0.8712542,116260.0,116250.0,0.1070926]
[1758292805660,2.60712131,116270.0,116260.0,0.1190287]
[1758292805661,0.3608,116270.0,116260.0,0.1190287]
[1758292805969,0.47778382,116280.0,116260.0,0.1190287]
[1758292805970,0.92389932,116280.0,116270.0,0.02112]
[1758292806265,0.92389932,116280.0,116270.0,0.38192]
[1758292807062,0.92389932,116280.0,116270.0,0.4678812]
[1758292807265,0.92389932,116280.0,116270.0,0.38192]
[1758292807466,1.25944543,116280.0,116270.0,0.38192]
[1758292807764,1.25944543,116280.0,116270.0,0.3906495]
[1758292809268,1.26844543,116280.0,116270.0,0.3926495]
[1758292809566,1.26944543,116280.0,116270.0,0.0328495]
[1758292809764,1.96579154,116280.0,116270.0,0.0117295]
[1758292810767,1.96579154,116280.0,116270.0,0.0328495]
[1758292811266,1.63024543,116280.0,116270.0,0.0328495]
[1758292812264,0.84496543,116280.0,116270.0,0.0328495]
[1758292812467,1.63008543,116280.0,116270.0,0.0328495]
[1758292814869,1.96563154,116280.0,116270.0,0.0328495]
[1758292815072,1.96563154,116280.0,116270.0,0.0117295]
[1758292816262,1.63008543,116280.0,116270.0,0.0117295]
[1758292817070,1.96563154,116280.0,116270.0,0.0117295]
[1758292817567,2.21563154,116280.0,116270.0,0.003]
[1758292820166,2.21563154,116280.0,116270.0,1e-07]
[1758292820367,2.22419793,116280.0,116270.0,1e-07]
[1758292821778,2.21539154,116280.0,116270.0,1e-07]
[1758292822970,1.43051154,116280.0,116270.0,1e-07]
[1758292823366,2.21539154,116280.0,116270.0,1e-07]
[1758292827884,0.1209481,116260.0,116250.0,0.02004597]
[1758292828187,1.60209421,116260.0,116250.0,0.01994597]
[1758292829084,0.81729421,116260.0,116250.0,0.0285539]
[1758292829290,0.82029421,116260.0,116250.0,0.0305539]
[1758292829786,0.82029421,116260.0,116250.0,0.0518339]
[1758292829986,0.82129421,116260.0,116250.0,0.0518339]
[1758292830184,1.60605421,116260.0,116250.0,0.0518339]
[1758292830992,1.60605421,116260.0,116250.0,0.0305539]
[1758292831687,1.60605421,116260.0,116250.0,0.02194597]
[1758292831987,1.60605421,116260.0,116250.0,0.002]
[1758292833991,0.1209555,116250.0,116240.0,0.0960228]
[1758292834187,1.15284772,116250.0,116240.0,0.0960228]
[1758292834587,1.93756772,116250.0,116240.0,0.0960228]
[1758292835194,1.93856772,116250.0,116240.0,0.0960228]
[1758292835585,0.4827555,116250.0,116240.0,0.1173028]
[1758292835788,0.82630161,116250.0,116240.0,0.1203028]
[1758292836085,1.61102161,116250.0,116240.0,0.1203028]
[1758292837695,1.2754755,116250.0,116240.0,0.1203028]
[1758292837891,1.61102161,116250.0,116240.0,0.1203028]
[1758292839489,0.82630161,116250.0,116240.0,0.1203028]
[1758292839695,1.61098161,116250.0,116240.0,0.1203028]
[1758292841808,1.61119802,116250.0,116240.0,0.1203028]
[1758292842402,1.94696054,116250.0,116240.0,0.0990228]
[1758292843103,1.94696054,116250.0,116240.0,0.1203028]
[1758292843800,1.94692054,116250.0,116240.0,0.1203028]
[1758292844208,1.61115802,116250.0,116240.0,0.1203028]
[1758292846402,0.82651802,116250.0,116240.0,0.1203028]
[1758292846598,1.2753555,116250.0,116240.0,0.1203028]
[1758292847106,1.61111802,116250.0,116240.0,0.1203028]
[1758292849213,1.2753555,116250.0,116240.0,0.1203028]
[1758292849414,1.61111802,116250.0,116240.0,0.0990228]
[1758292849812,1.61111802,116250.0,116240.0,0.1203028]
[1758292850614,1.61111802,116250.0,116240.0,0.45606532]
[1758292850615,0.4907555,116250.0,116240.0,0.45606532]
[1758292850916,0.82651802,116250.0,116240.0,0.70606532]
[1758292851110,0.4907555,116250.0,116240.0,1.05376784]
[1758292851413,1.25027802,116250.0,116240.0,0.71800532]
[1758292851613,1.25027802,116250.0,116240.0,0.70606532]
[1758292852108,1.25027802,116250.0,116240.0,0.79204822]
[1758292852913,1.25027802,116250.0,116240.0,1.15284822]
[1758292854210,0.1299555,116250.0,116240.0,1.15284822]
[1758292854412,0.9145155,116250.0,116240.0,1.48861074]
[1758292854608,1.25027802,116250.0,116240.0,1.15284822]
[1758292855315,0.9145155,116250.0,116240.0,1.15284822]
[1758292855516,1.25027802,116250.0,116240.0,1.15284822]
[1758292856419,0.9145155,116250.0,116240.0,1.15284822]
[1758292856619,1.25027802,116250.0,116240.0,1.15284822]
[1758292857213,0.9145155,116250.0,116240.0,1.15284822]
[1758292857419,1.25027802,116250.0,116240.0,1.15284822]
[1758292858524,0.9145155,116250.0,116240.0,1.15284822]
[1758292858823,1.25027802,116250.0,116240.0,1.15284822]
[1758292859422,1.25019802,116250.0,116240.0,1.48861074]
[1758292859627,1.25019802,116250.0,116240.0,1.15284822]
[1758292864224,1.58596054,116250.0,116240.0,0.0990228]
[1758292864429,2.19676054,116250.0,116240.0,0.0990228]
[1758292864918,2.19676054,116250.0,116240.0,0.1200528]
[1758292865318,2.19676054,116250.0,116240.0,0.09057363]
[1758292866524,2.19676054,116250.0,116240.0,0.11160363]
[1758292867431,2.19676054,116250.0,116240.0,0.09057363]
[1758292870028,2.19676054,116250.0,116240.0,0.09937775]
[1758292870328,2.19664054,116250.0,116240.0,0.09937775]
[1758292873334,0.4907555,116250.0,116240.0,0.79193279]
[1758292873529,1.25007802,116250.0,116240.0,1.15273279]
[1758292873728,0.9143155,116250.0,116240.0,1.23871569]
[1758292873930,1.25007802,116250.0,116240.0,0.90295317]
[1758292874635,0.8792955,116250.0,116240.0,1.48871569]
[1758292875334,1.21505802,116250.0,116240.0,1.48871569]
[1758292875531,0.8792955,116250.0,116240.0,1.48871569]
[1758292875737,0.9138955,116250.0,116240.0,0.81719065]
[1758292875938,0.9138955,116250.0,116240.0,1.48871569]
[1758292877035,0.1295755,116250.0,116240.0,1.48871569]
[1758292877238,0.9012255,116250.0,116240.0,1.48871569]
[1758292878341,0.1169455,116250.0,116240.0,1.48871569]
[1758292878537,0.9012255,116250.0,116240.0,1.48871569]
[1758292881738,0.9012255,116250.0,116240.0,0.81719065]
[1758292881939,0.9012255,116250.0,116240.0,1.48871569]
[1758292882644,0.1169455,116250.0,116240.0,1.48871569]
[1758292882841,0.0949755,116250.0,116240.0,1.48871569]
[1758292883141,0.8791755,116250.0,116240.0,1.48871569]
[1758292884539,0.8929755,116250.0,116240.0,1.48871569]
[1758292885142,1.22873802,116250.0,116240.0,1.48871569]
[1758292886444,0.44453802,116250.0,116240.0,1.48871569]
[1758292886645,0.8791355,116250.0,116240.0,1.48871569]
[1758292886842,0.0949755,116250.0,116240.0,1.23871569]
[1758292887938,0.0949755,116250.0,116240.0,2.02287569]
[1758292890350,0.0949755,116250.0,116240.0,1.23871569]
[1758292890540,0.0949755,116250.0,116240.0,2.02283569]
[1758292894252,0.0949755,116250.0,116240.0,2.02275569]
[1758292898150,0.00775062,116250.0,116240.0,2.35851821]
[1758292898350,0.4829081,116280.0,116270.0,0.0221]
[1758292898550,0.4829081,116280.0,116270.0,0.36980252]
[1758292898852,0.81867062,116280.0,116270.0,0.36980252]
[1758292899040,0.4829081,116280.0,116270.0,0.35786252]
[1758292899240,0.81867062,116280.0,116270.0,0.35786252]
[1758292899843,0.82367062,116280.0,116270.0,0.35986252]
[1758292900356,0.82367062,116280.0,116270.0,0.0241]
[1758292900357,1.40943314,116280.0,116270.0,0.0241]
[1758292900654,1.41043314,116280.0,116270.0,0.003]
[1758292900855,1.41043314,116280.0,116270.0,0.0251]
[1758292903254,1.41043314,116280.0,116270.0,0.36086252]
[1758292903856,1.07447688,116280.0,116270.0,0.0251]
[1758292905553,0.7389081,116280.0,116270.0,0.0251]
[1758292905853,1.07447688,116280.0,116270.0,0.0251]
[1758292906254,1.85843688,116280.0,116270.0,0.0251]
[1758292906853,1.85839688,116280.0,116270.0,0.0251]
[1758292907353,1.07447688,116280.0,116270.0,0.0251]
[1758292907560,1.85839688,116280.0,116270.0,0.0251]
[1758292907858,1.07447688,116280.0,116270.0,0.0251]
[1758292908159,1.5228281,116280.0,116270.0,0.36066878]
[1758292908950,1.5228281,116280.0,116270.0,0.003]
[1758292908951,1.85839688,116280.0,116270.0,0.003]
[1758292909151,1.5228281,116280.0,116270.0,0.003]
[1758292909357,1.85839688,116280.0,116270.0,0.003]
[1758292910660,2.19396566,116280.0,116270.0,0.003]
[1758292910957,2.21159479,116280.0,116270.0,0.003]
[1758292911353,2.21155479,116280.0,116270.0,0.003]
[1758292912858,1.42767479,116280.0,116270.0,0.003]
[1758292913046,2.21155479,116280.0,116270.0,0.003]
[1758292913562,1.42767479,116280.0,116270.0,0.003]
[1758292913761,2.21155479,116280.0,116270.0,0.003]
[1758292914058,1.42767479,116280.0,116270.0,0.003]
[1758292914461,1.87598601,116280.0,116270.0,0.02513]
[1758292915158,1.62598601,116280.0,116270.0,0.02513]
[1758292915347,0.50653723,116280.0,116270.0,0.36069878]
[1758292915550,1.29041723,116280.0,116270.0,0.36069878]
[1758292916264,1.29041723,116280.0,116270.0,0.02513]
[1758292916959,1.29045723,116280.0,116270.0,0.02513]
[1758292917157,1.62602601,116280.0,116270.0,0.02513]
[1758292917455,0.84210601,116280.0,116270.0,0.02513]
[1758292917962,1.62598601,116280.0,116270.0,0.02513]
[1758292923551,1.62598601,116280.0,116270.0,0.003]
[1758292924463,0.84210601,116280.0,116270.0,0.02432]
[1758292924765,1.62598601,116280.0,116270.0,0.02432]
[1758292926769,1.29041723,116280.0,116270.0,0.02432]
[1758292927068,1.62598601,116280.0,116270.0,0.02432]
[1758292927765,0.50653723,116280.0,116270.0,0.35988878]
[1758292928265,1.29041723,116280.0,116270.0,0.35988878]
[1758292930566,0.50653723,116280.0,116270.0,0.35988878]
[1758292930774,1.29037723,116280.0,116270.0,0.35988878]
[1758292934468,1.29037723,116280.0,116270.0,0.37182878]
[1758292934669,1.29037723,116280.0,116270.0,0.62182878]
[1758292935773,0.91628723,116280.0,116270.0,0.98262878]
[1758292937361,0.91628723,116280.0,116270.0,0.62182878]
[1758292938375,0.91628723,116280.0,116270.0,0.98262878]
[1758292940678,0.91628723,116280.0,116270.0,0.6138]
[1758292940980,0.1228303,116270.0,116260.0,0.04162121]
[1758292941177,0.81919908,116270.0,116260.0,0.04162121]
[1758292943191,0.82619908,116270.0,116260.0,0.04362121]
[1758292943386,0.82719908,116270.0,116260.0,0.04362121]
[1758292944291,0.4916303,116270.0,116260.0,0.04362121]
[1758292944687,0.82719908,116270.0,116260.0,0.04362121]
[1758292947089,0.82719908,116270.0,116260.0,0.02230121]
[1758292947285,0.82719908,116270.0,116260.0,0.04496121]
[1758292953882,0.82719908,116270.0,116260.0,0.02230121]
[1758292955698,0.82719908,116270.0,116260.0,0.04496121]
[1758292955900,1.15034458,116270.0,116260.0,1e-08]
[1758292956193,1.93402458,116270.0,116260.0,1e-08]
[1758292956601,1.15034458,116270.0,116260.0,1e-08]
[1758292956799,1.93402458,116270.0,116260.0,1e-08]
[1758292958199,2.26959336,116270.0,116260.0,1e-08]
[1758292958393,1.93402458,116270.0,116260.0,1e-08]
[1758292959099,0.1211949,116250.0,116240.0,0.09662446]
[1758292959298,1.60120368,116250.0,116240.0,0.09652446]
[1758292960506,1.60224368,116250.0,116240.0,0.09652446]
[1758292961101,1.60624368,116250.0,116240.0,0.09852446]
[1758292962698,1.60624368,116250.0,116240.0,0.12118446]
[1758292963007,1.60624368,116250.0,116240.0,0.09852446]
[1758292963303,1.60620368,116250.0,116240.0,0.12118446]
[1758292963901,0.82256368,116250.0,116240.0,0.12118446]
[1758292964094,1.3438204,116250.0,116240.0,0.70675324]
[1758292964299,0.5601404,116250.0,116240.0,0.70675324]
[1758292964500,0.1261949,116250.0,116240.0,0.37118446]
[1758292964706,0.8961049,116250.0,116240.0,0.71869324]
[1758292965799,0.8961049,116250.0,116240.0,1.05441028]
[1758292966498,0.1124249,116250.0,116240.0,1.05441028]
[1758292966695,0.8961049,116250.0,116240.0,1.05441028]
[1758292968109,0.9098749,116250.0,116240.0,0.37118446]
[1758292968307,0.9098749,116250.0,116240.0,1.04247028]
[1758292971909,0.9098749,116250.0,116240.0,0.37118446]
[1758292972110,0.9098749,116250.0,116240.0,1.04247028]
[1758292973413,1.24551781,116250.0,116240.0,1.04247028]
[1758292974208,0.9098749,116250.0,116240.0,1.04247028]
[1758292974513,1.24551781,116250.0,116240.0,1.04247028]
[1758292974913,1.24551781,116250.0,116240.0,0.37118446]
[1758292975105,1.60631781,116250.0,116240.0,1.04247028]
[1758292975715,0.82263781,116250.0,116240.0,1.04247028]
[1758292976011,1.60623781,116250.0,116240.0,1.04247028]
[1758292976211,1.2705949,116250.0,116240.0,1.04247028]
[1758292976616,0.9097949,116250.0,116240.0,1.04247028]
[1758292977903,0.1124249,116250.0,116240.0,1.04247028]
[1758292978107,0.8960249,116250.0,116240.0,1.04247028]
[1758292978507,0.1124249,116250.0,116240.0,1.12845278]
[1758292978703,0.1641204,116250.0,116240.0,1.48925278]
[1758292981715,0.51349331,116250.0,116240.0,0.79247028]
[1758292981921,0.53582331,116250.0,116240.0,0.45682737]
[1758292983622,0.53582331,116250.0,116240.0,0.79247028]
[1758292983822,0.53582331,116250.0,116240.0,0.12118446]
[1758292984032,0.53582331,116250.0,116240.0,0.79247028]
[1758292985324,0.53582331,116250.0,116240.0,0.45682737]
[1758292987522,0.53482331,116250.0,116240.0,0.45682737]
[1758292987727,0.53582331,116250.0,116240.0,0.45682737]
[1758292988211,1.14662331,116250.0,116240.0,0.09002575]
[1758292989531,1.14262331,116250.0,116240.0,0.08802575]
[1758292989717,1.14862331,116250.0,116240.0,0.09002575]
[1758292990629,1.14862331,116250.0,116240.0,0.09875945]
[1758292993227,0.8129804,116250.0,116240.0,0.12044945]
[1758292993429,1.93210331,116250.0,116240.0,0.12044945]
[1758292994233,1.14862331,116250.0,116240.0,0.12044945]
[1758292994419,1.93206331,116250.0,116240.0,0.12044945]
[1758292994829,1.14862331,116250.0,116240.0,0.12044945]
[1758292995131,1.93206331,116250.0,116240.0,0.45609236]
[1758292995929,1.5964204,116250.0,116240.0,0.45609236]
[1758292996235,1.93206331,116250.0,116240.0,0.45609236]
[1758292996630,1.93206331,116250.0,116240.0,0.12044945]
[1758292998527,1.93206331,116250.0,116240.0,0.45609236]
[1758292999034,0.8129804,116250.0,116240.0,0.45609236]
[1758292999332,1.93206331,116250.0,116240.0,0.45609236]
[1758293000133,1.93206331,116250.0,116240.0,0.79173527]
[1758293000134,0.78782331,116250.0,116240.0,0.79173527]
[1758293000433,1.57122331,116250.0,116240.0,0.45609236]
[1758293000731,1.57122331,116250.0,116240.0,0.12044945]
[1758293001033,1.57122331,116250.0,116240.0,0.45609236]
[1758293001330,1.93202331,116250.0,116240.0,0.45609236]
[1758293001830,1.93202331,116250.0,116240.0,0.12044945]
[1758293002222,1.93202331,116250.0,116240.0,0.45609236]
[1758293003122,1.68202331,116250.0,116240.0,0.45609236]
[1758293003835,1.32122331,116250.0,116240.0,0.45609236]
[1758293005234,0.53782331,116250.0,116240.0,0.79173527]
[1758293005427,1.32122331,116250.0,116240.0,0.79173527]
[1758293006126,1.32122331,116250.0,116240.0,0.45609236]
[1758293007333,0.53782331,116250.0,116240.0,0.45609236]
[1758293007535,1.32118331,116250.0,116240.0,0.45609236]
[1758293008024,0.53782331,116250.0,116240.0,0.45609236]
[1758293008227,1.32118331,116250.0,116240.0,0.45609236]
[1758293012841,0.9855404,116250.0,116240.0,0.45609236]
[1758293013143,1.32118331,116250.0,116240.0,0.45609236]
[1758293016739,1.68198331,116250.0,116240.0,0.43440236]
[1758293017244,1.68198331,116250.0,116240.0,0.45724236]
[1758293017738,1.68198331,116250.0,116240.0,0.44850866]
[1758293018043,1.60883781,116250.0,116240.0,0.09002575]
[1758293020343,1.68198331,116250.0,116240.0,0.09002575]
[1758293020540,1.68198331,116250.0,116240.0,0.06962618]
[1758293022537,0.89862331,116250.0,116240.0,0.06962618]
[1758293022744,0.89862331,116250.0,116220.0,0.0001]
[1758293022745,0.1211703,116230.0,116220.0,0.0001]
[1758293022943,0.1211776,116220.0,116210.0,0.04269841]
[1758293023251,0.79246342,116220.0,116210.0,1.54269841]
[1758293023546,0.86560892,116220.0,116210.0,0.04269841]
[1758293023944,0.86560892,116220.0,116210.0,1.54269841]
[1758293024147,0.86660892,116220.0,116210.0,1.54269841]
[1758293024348,0.53396601,116220.0,116210.0,1.88634132]
[1758293024548,0.53396601,116220.0,116210.0,0.38634132]
[1758293024745,0.53396601,116220.0,116210.0,0.05069841]
[1758293024949,0.53396601,116220.0,116210.0,0.38634132]
[1758293025145,0.53396601,116220.0,116210.0,0.05926322]
[1758293025340,0.1983231,116220.0,116210.0,0.03940481]
[1758293025647,0.1983231,116220.0,116210.0,0.37204772]
[1758293025648,0.53296601,116220.0,116210.0,0.37204772]
[1758293025843,0.1973231,116220.0,116210.0,0.03640481]
[1758293026149,1.0084431,116220.0,116210.0,0.03640481]
[1758293026946,1.0090831,116220.0,116210.0,0.10408983]
[1758293027146,1.0090831,116220.0,116210.0,0.02784]
[1758293027347,0.1973231,116220.0,116210.0,0.02784]
[1758293027548,1.0086831,116220.0,116210.0,0.02784]
[1758293027748,0.1973231,116220.0,116210.0,0.02784]
[1758293028052,1.0086831,116220.0,116210.0,0.02784]
[1758293028349,1.0085631,116220.0,116210.0,0.36373555]
[1758293028750,1.0085631,116220.0,116210.0,0.37234433]
[1758293029252,0.1973231,116220.0,116210.0,0.37234433]
[1758293029454,1.0088031,116220.0,116210.0,0.37234433]
[1758293031448,1.0079631,116220.0,116210.0,0.37234433]
[1758293031741,1.0079631,116220.0,116210.0,0.4394996]
[1758293031945,1.0077631,116220.0,116210.0,0.4394996]
[1758293032148,0.53321865,116220.0,116210.0,0.10360405]
[1758293032348,1.70437865,116220.0,116210.0,0.10360405]
[1758293036050,1.70353865,116220.0,116210.0,0.10360405]
[1758293036249,1.70329865,116220.0,116210.0,0.10360405]
[1758293036653,1.3674031,116220.0,116210.0,0.10360405]
[1758293036842,1.70329865,116220.0,116210.0,0.10360405]
[1758293038354,1.3674031,116220.0,116210.0,0.10360405]
[1758293038556,1.70329865,116220.0,116210.0,0.10360405]
[1758293040060,0.89401865,116220.0,116210.0,0.10360405]
[1758293040460,1.70253865,116220.0,116210.0,0.10360405]
[1758293041054,1.70253865,116220.0,116210.0,0.08076405]
[1758293043763,0.5581231,116220.0,116210.0,0.10218405]
[1758293044056,1.70205865,116220.0,116210.0,0.08076405]
[1758293044363,1.3658031,116220.0,116210.0,0.10218405]
[1758293044661,1.3659631,116220.0,116210.0,0.10218405]
[1758293044861,0.89401865,116220.0,116210.0,0.10218405]
[1758293045064,1.70185865,116220.0,116210.0,0.10218405]
[1758293047964,1.3659631,116220.0,116210.0,0.08076405]
[1758293048265,1.70185865,116220.0,116210.0,0.08076405]
[1758293050765,1.3659631,116220.0,116210.0,0.08076405]
[1758293050966,1.70185865,116220.0,116210.0,0.08076405]
[1758293051862,1.71903017,116220.0,116210.0,0.08076405]
[1758293052064,2.05492572,116220.0,116200.0,0.02019597]
[1758293052261,0.89030615,116210.0,116200.0,0.0287052]
[1758293053472,0.89030615,116210.0,116200.0,0.0387052]
[1758293053971,0.89030615,116210.0,116200.0,0.0287052]
[1758293054174,0.89330615,116210.0,116200.0,0.0387052]
[1758293054465,0.89330615,116210.0,116200.0,0.10917596]
[1758293054671,0.89330615,116210.0,116200.0,0.03019597]
[1758293054973,1.69894615,116210.0,116200.0,0.03869399]
[1758293055272,1.69894615,116210.0,116200.0,0.06011399]
[1758293055768,1.69994615,116210.0,116200.0,0.06011399]
[1758293056267,1.69994615,116210.0,116200.0,0.03869399]
[1758293057866,1.69994615,116210.0,116200.0,1e-07]
[1758293058870,1.69914615,116210.0,116200.0,7e-08]
[1758293059072,0.1204798,116190.0,116180.0,0.02152]
[1758293059272,1.26113535,116190.0,116180.0,0.02142]
[1758293059578,1.26097535,116190.0,116180.0,0.02142]
[1758293060271,1.26097535,116190.0,116170.0,1.8608]
[1758293060272,0.0988373,116180.0,116170.0,1.8608]
[1758293060478,0.0860347,116170.0,116160.0,0.3608]
[1758293060679,0.45639025,116170.0,116160.0,0.38222]
[1758293060879,1.26071025,116170.0,116160.0,1.88222]
[1758293061382,0.45639025,116170.0,116160.0,1.88222]
[1758293061577,0.9248147,116170.0,116160.0,1.88222]
[1758293061879,0.9248147,116170.0,116160.0,1.89089232]
[1758293062277,0.9979602,116170.0,116160.0,1.95976281]
[1758293062480,1.33385575,116170.0,116160.0,1.95976281]
[1758293062680,1.33385575,116170.0,116160.0,0.45976281]
[1758293063078,1.33885575,116170.0,116160.0,0.46776281]
[1758293063281,1.33853575,116170.0,116160.0,0.46776281]
[1758293063683,0.53453575,116170.0,116160.0,0.46776281]
[1758293063885,1.33853575,116170.0,116160.0,0.46776281]
[1758293064077,1.0026402,116170.0,116160.0,0.46776281]
[1758293064278,1.0025602,116170.0,116160.0,0.46776281]
[1758293064585,1.0024402,116170.0,116160.0,0.46776281]
[1758293066179,1.0023602,116170.0,116160.0,0.46776281]
[1758293066382,1.0023602,116170.0,116160.0,0.45976281]
[1758293066584,1.0023602,116170.0,116160.0,0.46576281]
[1758293069380,1.0023602,116170.0,116160.0,0.80165836]
[1758293069581,1.0012402,116170.0,116160.0,0.80165836]
[1758293069983,0.1986402,116170.0,116160.0,0.80165836]
[1758293070181,1.0012402,116170.0,116160.0,0.80165836]
[1758293070580,1.0012402,116170.0,116160.0,0.46576281]
[1758293071284,1.0012402,116170.0,116160.0,0.80165836]
[1758293071588,1.0012402,116170.0,116160.0,0.46576281]
[1758293071788,1.0012402,116170.0,116160.0,0.80165836]
[1758293074291,1.33713575,116170.0,116160.0,0.08354281]
[1758293074487,1.33713575,116170.0,116160.0,0.10582281]
[1758293075187,1.0012402,116170.0,116160.0,0.10582281]
[1758293075388,1.33713575,116170.0,116160.0,0.10582281]
[1758293075688,0.1986402,116170.0,116160.0,0.44171836]
[1758293075888,1.0002802,116170.0,116160.0,0.44171836]
[1758293076291,1.33617575,116170.0,116160.0,0.10582281]
[1758293076490,1.33617575,116170.0,116160.0,0.08354281]
[1758293077394,1.69697575,116170.0,116160.0,0.08354281]
[1758293079190,1.3610802,116170.0,116160.0,0.08354281]
[1758293079400,1.62383025,116170.0,116160.0,0.08354281]
[1758293080098,1.61983025,116170.0,116160.0,0.07754281]
[1758293080294,1.2879347,116170.0,116160.0,0.004]
[1758293080494,1.62383025,116170.0,116160.0,0.004]
[1758293081591,1.62383025,116170.0,116160.0,0.07439162]
[1758293082393,1.62383025,116170.0,116160.0,0.08322868]
[1758293083894,1.2879347,116170.0,116160.0,0.10550868]
[1758293084200,1.2872547,116170.0,116160.0,0.10550868]
[1758293084395,0.4862947,116170.0,116160.0,0.10550868]
[1758293084901,1.2900547,116170.0,116160.0,0.10550868]
[1758293085102,1.2900547,116170.0,116160.0,0.44140423]
[1758293085600,1.2900547,116170.0,116160.0,0.10550868]
[1758293087803,1.62622766,116170.0,116160.0,0.44168164]
[1758293088003,1.62822766,116170.0,116160.0,0.44068164]
[1758293089206,1.62722766,116170.0,116160.0,0.44068164]
[1758293089501,1.62822766,116170.0,116160.0,0.44068164]
[1758293090002,1.62822766,116170.0,116160.0,0.10450868]
[1758293090202,1.62822766,116170.0,116160.0,0.44068164]
[1758293090700,1.62822766,116170.0,116160.0,0.08222868]
[1758293093105,1.62722766,116170.0,116160.0,0.08222868]
[1758293093303,0.82446766,116170.0,116160.0,0.08222868]
[1758293093503,1.62654766,116170.0,116160.0,0.08222868]
[1758293094202,1.62054766,116170.0,116160.0,0.07922868]
[1758293094505,0.1216721,116160.0,116150.0,0.71970296]
[1758293094707,0.53099056,116160.0,116150.0,0.71970296]
[1758293095708,0.53199056,116160.0,116150.0,0.71970296]
[1758293095906,0.53699056,116160.0,116150.0,0.71970296]
[1758293096302,0.53699056,116160.0,116150.0,0.38353]
[1758293096607,0.53699056,116160.0,116150.0,0.79848251]
[1758293098311,0.2008176,116160.0,116150.0,0.79848251]
[1758293098510,0.53699056,116160.0,116150.0,0.79848251]
[1758293101715,0.53699056,116160.0,116150.0,0.10150955]
[1758293101911,1.47973379,116160.0,116150.0,0.07020508]
[1758293102106,0.0860495,116150.0,116140.0,0.02574587]
[1758293102312,1.25783246,116150.0,116140.0,0.02574587]
[1758293102513,1.33097796,116150.0,116140.0,0.02574587]
[1758293102715,0.994805,116150.0,116140.0,0.38404883]
[1758293102911,1.33097796,116150.0,116140.0,0.38404883]
[1758293103323,0.53169796,116150.0,116140.0,0.38404883]
[1758293103518,1.33313796,116150.0,116140.0,0.38404883]
[1758293103718,1.33813796,116150.0,116140.0,0.04787587]
[1758293103918,1.33813796,116150.0,116140.0,0.38404883]
[1758293104325,1.33813796,116150.0,116140.0,0.38400883]
[1758293104524,1.33813796,116150.0,116140.0,0.04783587]
[1758293104720,1.33813796,116150.0,116140.0,0.38400883]
[1758293104926,0.53669796,116150.0,116140.0,0.38400883]
[1758293105232,0.200525,116150.0,116140.0,0.87503843]
[1758293105432,0.1143895,116150.0,116140.0,1.49777843]
[1758293105723,0.82938,116150.0,116140.0,1.49777843]
[1758293105924,0.006,116150.0,116140.0,1.83395139]
[1758293106925,0.006,116150.0,116140.0,2.63495139]
[1758293107430,0.006,116150.0,116140.0,2.29877843]
[1758293107628,0.006,116150.0,116140.0,2.63495139]
[1758293107931,0.006,116150.0,116140.0,2.29857843]
[1758293108126,0.006,116150.0,116140.0,2.63475139]
[1758293109217,0.006,116150.0,116140.0,1.83395139]
[1758293109519,0.006,116150.0,116140.0,2.63443139]
[1758293110226,0.006,116150.0,116140.0,2.63427139]
[1758293111631,0.006,116150.0,116140.0,1.83395139]
[1758293111822,0.006,116150.0,116140.0,2.63387139]
[1758293112131,0.006,116150.0,116140.0,2.63383139]
[1758293112431,0.006,116150.0,116140.0,2.63375139]
[1758293112818,0.006,116150.0,116140.0,2.63371139]
[1758293113026,0.006,116150.0,116140.0,2.35901066]
[1758293114031,0.006,116150.0,116140.0,1.82195066]
[1758293114330,0.006,116150.0,116140.0,2.8227538]
[1758293114727,0.0988421,116180.0,116170.0,0.1201047]
[1758293114728,0.1083721,116180.0,116170.0,0.1201047]
[1758293114925,0.02234,116180.0,116170.0,0.79245062]
[1758293115126,0.0954855,116180.0,116170.0,0.79245062]
[1758293115533,0.0954855,116180.0,116170.0,0.45627766]
[1758293115836,0.0741455,116180.0,116170.0,0.79245062]
[1758293116333,0.0964855,116180.0,116170.0,0.79245062]
[1758293116924,0.0964855,116180.0,116170.0,1.59165062]
[1758293117118,0.1825128,116180.0,116170.0,0.79245062]
[1758293117326,0.1865128,116180.0,116170.0,0.79545062]
[1758293117635,0.0781455,116180.0,116170.0,0.79545062]
[1758293118433,0.0781455,116180.0,116170.0,1.59445062]
[1758293121028,0.0781455,116180.0,116170.0,1.59393062]